Cogmind - Beta 17 --- EXPLORER MODE // 2026.08.18 @ 17:00:05 // AFD2019/Pay2Buy Player: Goose Result: Core destroyed Performance ------------- Evolutions (4) 2000 Regions Visited (8) 1600 Robots Destroyed (21) 105 Value Destroyed (734) 734 Prototype IDs (16) 320 Alien Tech Used (0) 0 Bonus (700) 700 TOTAL SCORE: 5459 Bonus ------- Entered Garrisons 200 Entered DSFs 500 Cogmind --------- Core Integrity 0/850 Matter 196/300 Energy 99/100 System Corruption 3% Temperature Cool (0) Movement Core (50) Location -6/Garrison Parts ------- > --- POWER (2) -------- (None) > --- PROPULSION (5) --- (None) > --- UTILITY (5) ------ (None) > --- WEAPON (4) ------- (None) > --- INVENTORY (10) --- (None) Peak State ------------ > --- POWER ------------ Light Nuclear Core > --- PROPULSION ------- Improved Flight Unit Cooled VTOL Module > --- UTILITY ---------- Weight Redist. System Targeting Computer Makeshift Light Armor Plating Makeshift Thermal Plating > --- WEAPON ----------- Battle Cannon > --- INVENTORY -------- Subdweller Power Source Weight Redist. System [Rating: 24] Favorites ----------- Power Subdweller Power Source Engine Subdweller Power Source Power Core Light Nuclear Core Propulsion Improved Flight Unit Wheel Compact Wheel Flight Unit Improved Flight Unit Utility Makeshift Light Armor Plating Device Weight Redist. System Processor Targeting Computer Protection Makeshift Light Armor Plating Weapon Shotgun Ballistic Gun Shotgun Ballistic Cannon Battle Cannon Build | -11 -10 -10 -10 -8 -7 -7 -6 -6 ------- Run | Yrd Mat Min Sub Mat Fac DSF Fac Gar Slots Evolved 9 | . 1 . . 4 2 . 2 . Power 1 | . . . . 1 . . . . Propulsion 3 | . . . . 2 . . 1 . Utility 3 | . 1 . . 1 . . 1 . Weapon 2 | . . . . . 2 . . . Parts Attached 7 | . . . 6 1 . . . . Power . | . . . . . . . . . Engine . | . . . . . . . . . Core . | . . . . . . . . . Reactor . | . . . . . . . . . Propulsion . | . . . . . . . . . Treads . | . . . . . . . . . Leg . | . . . . . . . . . Wheel . | . . . . . . . . . Hover . | . . . . . . . . . Flight . | . . . . . . . . . Utility 4 | . . . 4 . . . . . Device 2 | . . . 2 . . . . . Storage . | . . . . . . . . . Processor . | . . . . . . . . . Hackware . | . . . . . . . . . Protection 2 | . . . 2 . . . . . Artifact . | . . . . . . . . . Weapon 3 | . . . 2 1 . . . . Energy Gun . | . . . . . . . . . Energy Cannon . | . . . . . . . . . Ballistic Gun 1 | . . . . 1 . . . . Ballistic Cannon 2 | . . . 2 . . . . . Launcher . | . . . . . . . . . Special Weapon . | . . . . . . . . . Impact Weapon . | . . . . . . . . . Slashing Weapon . | . . . . . . . . . Piercing Weapon . | . . . . . . . . . Special Melee Weapon . | . . . . . . . . . Unidentified Prototypes . | . . . . . . . . . Parts Lost 12 | . . . . 8 . 3 . 1 Power 1 | . . . . . . 1 . . Propulsion 4 | . . . . 2 . 1 . 1 Utility 4 | . . . . 3 . 1 . . Weapon 3 | . . . . 3 . . . . Highest Loss Streak 5 | . . . . 5 . 3 . 1 To Critical Strikes . | . . . . . . . . . Average Backups 2 | . . . 2 3 2 1 1 . Power . | . . . . 1 1 1 1 . Propulsion . | . . . . . . . . . Utility 1 | . . . 1 1 1 . . . Weapon . | . . . . . . . . . Tool/Special . | . . . . . . . . . Unused Backups . | . . . . . . . . . Power . | . . . . . . . . . Propulsion . | . . . . . . . . . Utility . | . . . . . . . . . Weapon . | . . . . . . . . . Tool/Special . | . . . . . . . . . Average Slot Usage (%) 57 | . 75 75 70 45 21 16 . 3 Engine 2 | . 12 12 3 . . . . . Flight 19 | . 25 25 25 13 7 5 . . Device 6 | . 25 25 8 1 . 2 . . Protection 11 | . . . 13 13 . . . . Ballistic Gun 8 | . 12 12 12 . . . . . Ballistic Cannon 6 | . . . 6 11 . . . . Peak Build Rating 24 | 14 14 14 20 24 9 11 . 2 Average Rating 14 | 1 14 14 15 16 9 7 . . On Entrance 8 | . 14 14 14 18 9 9 . . Avg Prop Armor Cover (%) 2 | . . . 2 . . . . . Naked Turns 158 | . . . . . . 5 79 74 Heaviest Build 16 | 8 8 8 14 16 5 5 . . Greatest Support 32 | 16 16 16 16 16 7 13 3 32 Greatest Overweight (x) 2 | . . . 2 2 . . . . Average Overweight (x) . | . . . . . . . . . Largest Inventory Capacity 10 | 10 10 10 10 10 10 10 10 10 Average Capacity 10 | 10 10 10 10 10 10 10 10 10 Most Carried 4 | . . . 4 4 2 2 1 1 Average Carried 2 | . . . 2 3 2 1 1 . Final Capacity 10 | 10 10 10 10 10 10 10 10 10 Final Carried 4 | . . . 4 2 2 1 1 . Class Distribution -------------------- 94% | Hacker-Mutant 5% | Hacker-Sprinter Dominant Class ---------------- Hacker-Mutant | -10/Materials Hacker-Mutant | -10/Mines Hacker-Mutant | -10/Subcaves Hacker-Mutant | -8/Materials Hacker-Sprinter | -7/Factory Hacker-Sprinter | -7/DSF Hacker-Mutant | -6/Factory Hacker-Mutant | -6/Garrison Resources | -11 -10 -10 -10 -8 -7 -7 -6 -6 ----------- Run | Yrd Mat Min Sub Mat Fac DSF Fac Gar Matter Collected 651 | . . . 266 376 . . . 9 Remotely . | . . . . . . . . . Salvage Created 526 | . . . 113 413 . . . . Parts . | . . . . . . . . . Haulers Intercepted . | . . . . . . . . . Recyclers Shooed . | . . . . . . . . . Parts Field Recycled . | . . . . . . . . . Retrieved Matter . | . . . . . . . . . Parts Self-Destructed . | . . . . . . . . . Prevented . | . . . . . . . . . Parts Restored . | . . . . . . . . . Kills | -11 -10 -10 -10 -8 -7 -7 -6 -6 ------- Run | Yrd Mat Min Sub Mat Fac DSF Fac Gar Combat Hostiles Destroyed 19 | . . . 5 14 . . . . Guns 4 | . . . 3 1 . . . . Cannons 13 | . . . 2 11 . . . . Classes Destroyed 7 | . . . 1 6 . . . . Mechanic 1 | . . . . 1 . . . . Watcher 1 | . . . . 1 . . . . Swarmer 7 | . . . . 7 . . . . Grunt 4 | . . . . 4 . . . . Sentry 2 | . . . . 2 . . . . Hunter 1 | . . . . 1 . . . . Subdweller 5 | . . . 5 . . . . . Best Kill Streak 4 | . . . 2 4 . . . . Combat Bots Only 3 | . . . 2 3 . . . . Max Kills in Single Turn 1 | . . . 1 1 . . . . Gunslinging . | . . . . . . . . . Exploded . | . . . . . . . . . Melee . | . . . . . . . . . Uniques/NPCs Destroyed . | . . . . . . . . . Combat | -11 -10 -10 -10 -8 -7 -7 -6 -6 -------- Run | Yrd Mat Min Sub Mat Fac DSF Fac Gar Hostile Shots Fired 362 | . . . 58 179 . 19 . 106 Missed 134 | . . . 21 73 . 9 . 31 Hits 228 | . . . 37 106 . 10 . 75 Melee 7 | . . . . . . 7 . . Projectile 221 | . . . 37 106 . 3 . 75 AOE 2 | . . . . . . 2 . . Critical Strikes 10 | . . . 1 2 . 2 . 5 Damage Taken 2354 | . . . 520 790 . 154 36 854 Core 1341 | . . . 160 215 . 106 36 824 Absorbed by Shields . | . . . . . . . . . Ignored by Resistances 1473 | . . . 306 607 . 91 . 469 Core Remaining (%) 70 | 100 . . 36 60 . 84 . . Volleys Fired 94 | . 1 . 43 50 . . . . Largest 2 | . 1 . 2 2 . . . . Hottest 66 | . 23 . 56 66 . . . . Shots Fired 127 | . 1 . 56 70 . . . . Gun 37 | . 1 . 33 3 . . . . Cannon 90 | . . . 23 67 . . . . Launcher . | . . . . . . . . . Special . | . . . . . . . . . Kinetic 127 | . 1 . 56 70 . . . . Thermal . | . . . . . . . . . Explosive . | . . . . . . . . . Electromagnetic . | . . . . . . . . . Robot Hit Streak 28 | . 1 . 28 18 . . . . Robot Miss Streak 2 | . 1 . 1 2 . . . . Penetration Max . | . . . . . . . . . Secondary Targets . | . . . . . . . . . Shots Hit Robots 96 | . 1 . 44 51 . . . . Core Hits 39 | . . . 13 25 . . . 1 Critical Kills . | . . . . . . . . . Critical Parts Destroyed . | . . . . . . . . . Critical Strikes . | . . . . . . . . . Melee Attacks . | . . . . . . . . . Impact . | . . . . . . . . . Slashing . | . . . . . . . . . Piercing . | . . . . . . . . . Sneak Attacks . | . . . . . . . . . Combat Hostiles . | . . . . . . . . . Follow-up Attacks . | . . . . . . . . . Damage Inflicted 2453 | . 12 . 744 1629 . . 4 64 Guns 632 | . 12 . 559 61 . . . . Cannons 1275 | . . . 185 1090 . . . . Explosions 467 | . . . . 467 . . . . Melee . | . . . . . . . . . Ramming 79 | . . . . 11 . . 4 64 Kinetic 1907 | . 12 . 744 1151 . . . . Thermal . | . . . . . . . . . Explosive 381 | . . . . 381 . . . . Electromagnetic 86 | . . . . 86 . . . . Impact . | . . . . . . . . . Slashing . | . . . . . . . . . Piercing . | . . . . . . . . . Highest Corruption 4 | . . . . 2 . 4 . 3 Average Corruption 2 | . . . . 1 . 4 . 2 Corruption Purged . | . . . . . . . . . Corruption Blocked . | . . . . . . . . . Effects 1 | . . . . 1 . . . . Matter Fused 1 | . . . . 1 . . . . Overload Shots . | . . . . . . . . . Overflow Damage 90 | . . . . 90 . . . . Projectiles 64 | . . . . 64 . . . . Explosions 26 | . . . . 26 . . . . Melee . | . . . . . . . . . Knockbacks 20 | . . . 3 17 . . . . Impact . | . . . . . . . . . Kinetic 17 | . . . 3 14 . . . . Secondary 3 | . . . . 3 . . . . Self-Inflicted Damage 41 | . . . . 3 . . 2 36 Shots . | . . . . . . . . . Rammed 26 | . . . . 7 . . 1 18 Targets Rammed 26 | . . . . 7 . . 1 18 Kicked . | . . . . . . . . . Crushed . | . . . . . . . . . Highest Temperature 155 | . . . 155 64 . . . 2 Average Temperature 19 | . . . 65 15 . . . 2 Received Heat Transfer 1333 | . . . 315 558 . . . 460 Siege Activations . | . . . . . . . . . Martial Activations . | . . . . . . . . . Shielding Activations . | . . . . . . . . . Robots Disrupted . | . . . . . . . . . Combat Hostiles . | . . . . . . . . . Robots Corrupted 2 | . . . . 2 . . . . Combat Hostiles 2 | . . . . 2 . . . . Parts Fried . | . . . . . . . . . Impact Corruptions 2 | . . . . 2 . . . . Robots Melted . | . . . . . . . . . Combat Hostiles . | . . . . . . . . . Parts Melted . | . . . . . . . . . Heat Transferred . | . . . . . . . . . Parts Sabotaged . | . . . . . . . . . Parts Stolen . | . . . . . . . . . Parts Stripped . | . . . . . . . . . Power Chain Reactions . | . . . . . . . . . Alert | -11 -10 -10 -10 -8 -7 -7 -6 -6 ------- Run | Yrd Mat Min Sub Mat Fac DSF Fac Gar Maximum Alert Level 1 | . . . . 1 . . . . Low Security (%) 84 | 100 100 100 . 73 100 100 100 100 Level 1 15 | . . . . 26 . . . . Level 2 . | . . . . . . . . . Level 3 . | . . . . . . . . . Level 4 . | . . . . . . . . . Level 5 . | . . . . . . . . . High Security . | . . . . . . . . . Max Security . | . . . . . . . . . Peak Influence 311 | . . . . 311 87 48 45 167 Initial 87 | . . . . . 87 48 6 27 Average 81 | . . . . 106 87 39 3 106 Influence Increases 912 | . . . 15 691 3 . 53 150 Destroy 0b10 Robot/C 280 | . . . . 280 . . . . Destroy 0b10 Robot/NC 20 | . . . . 20 . . . . Destroy Leader 82 | . . . . 82 . . . . Successful Hack 52 | . . . . 31 3 . 8 10 Disable Machine 36 | . . . . 36 . . . . Anti-Garrison Action 50 | . . . . . . . . 50 Destroy Structure 47 | . . . . 47 . . . . Partial Spotted 60 | . . . . 60 . . . . Lose Combat Pursuer 285 | . . . 15 135 . . 45 90 Influence Decreases 745 | . . . 15 425 179 72 18 36 Entered New Map 259 | . . . . . 179 42 12 26 Time Decay 366 | . . . 15 345 . . 6 . Lost Part 120 | . . . . 80 . 30 . 10 Squads Dispatched 11 | . . . . 7 1 1 2 . Investigation 6 | . . . . 4 1 . 1 . Extermination . | . . . . . . . . . Reinforcement 2 | . . . . . . 1 1 . Assault . | . . . . . . . . . Garrison 3 | . . . . 3 . . . . Intercept . | . . . . . . . . . Searches Triggered . | . . . . . . . . . Construction Impeded . | . . . . . . . . . Haulers Reinforced . | . . . . . . . . . Active Scanning Responses . | . . . . . . . . . Cargo Convoy Interrupts . | . . . . . . . . . Stealth | -11 -10 -10 -10 -8 -7 -7 -6 -6 --------- Run | Yrd Mat Min Sub Mat Fac DSF Fac Gar Distress Signals 3 | . . . . 2 . . 1 . Communications Jammed . | . . . . . . . . . Distress Signals . | . . . . . . . . . Times Spotted 60 | . 1 . 6 27 . 4 6 16 Peak Tracking Total 12 | . 1 . 3 12 . 4 7 11 Tactical Retreats 7 | . . . 1 3 . . 1 2 Traps | -11 -10 -10 -10 -8 -7 -7 -6 -6 ------- Run | Yrd Mat Min Sub Mat Fac DSF Fac Gar Traps Triggered 1 | . . . . . . 1 . . Indirectly . | . . . . . . . . . Trap Hack Attempts . | . . . . . . . . . Triggered . | . . . . . . . . . Disarmed . | . . . . . . . . . Reprogrammed . | . . . . . . . . . Reused . | . . . . . . . . . Traps Extracted . | . . . . . . . . . Installed . | . . . . . . . . . Triggered . | . . . . . . . . . Objects Rigged 2 | . . . . 2 . . . . Exploded 2 | . . . . 2 . . . . Machines | -11 -10 -10 -10 -8 -7 -7 -6 -6 ---------- Run | Yrd Mat Min Sub Mat Fac DSF Fac Gar Machines Disabled 10 | . . . 1 9 . . . . Max in Single Turn 4 | . . . 1 4 . . . . Machines Repaired . | . . . . . . . . . Machines Dismantled . | . . . . . . . . . Machines Sabotaged . | . . . . . . . . . Overloaded Fab Kills . | . . . . . . . . . Hacking | -11 -10 -10 -10 -8 -7 -7 -6 -6 --------- Run | Yrd Mat Min Sub Mat Fac DSF Fac Gar Machines Accessed 18 | . 2 . 4 9 1 . 1 1 Terminals 11 | . 2 . . 7 1 . . 1 Fabricators . | . . . . . . . . . Repair Stations . | . . . . . . . . . Recycling Units . | . . . . . . . . . Scanalyzers 1 | . . . . 1 . . . . Garrison Access 2 | . . . . 1 . . 1 . Total Hacks 61 | . 7 . 16 29 3 . 3 3 Successful 43 | . 2 . 16 21 1 . 2 1 Failed 18 | . 5 . . 8 2 . 1 2 Catastrophic 2 | . . . . 1 . . . 1 Database Lockouts . | . . . . . . . . . Manual 27 | . 5 . . 18 . . 2 2 Terminals 35 | . 7 . . 22 3 . . 3 Fabricators . | . . . . . . . . . Repair Stations . | . . . . . . . . . Recycling Units . | . . . . . . . . . Scanalyzers 4 | . . . . 4 . . . . Garrison Access 6 | . . . . 3 . . 3 . Terminal Hacks 31 | . 2 . 16 11 1 . . 1 Record 19 | . 1 . 13 5 . . . . Robot Analysis 2 | . 1 . . 1 . . . . Open Door 1 | . . . 1 . . . . . Open DSF 1 | . . . . . 1 . . . Level Access Points 2 | . . . . 2 . . . . Branch Access Points 2 | . . . . 2 . . . . Emergency Access Points 1 | . . . . 1 . . . . Garrison Registry 1 | . . . . . . . . 1 Proto ID Catalog 1 | . . . 1 . . . . . Release Object 1 | . . . 1 . . . . . Fabricator Hacks . | . . . . . . . . . Repair Station Hacks . | . . . . . . . . . Recycling Unit Hacks . | . . . . . . . . . Scanalyzer 3 | . . . . 3 . . . . Insert Component 1 | . . . . 1 . . . . Analyze 1 | . . . . 1 . . . . Retrieve Study 1 | . . . . 1 . . . . Garrison Access Hacks 1 | . . . . . . . 1 . Unlock Access 1 | . . . . . . . 1 . Unauthorized Hacks 8 | . . . . 7 . . 1 . Terminals 5 | . . . . 5 . . . . Track 1 | . . . . 1 . . . . Assimilate 1 | . . . . 1 . . . . Botnet 1 | . . . . 1 . . . . Detonate 1 | . . . . 1 . . . . Disrupt 1 | . . . . 1 . . . . Fabricators . | . . . . . . . . . Repair Stations . | . . . . . . . . . Recycling Units . | . . . . . . . . . Scanalyzers . | . . . . . . . . . Garrison Access 3 | . . . . 2 . . 1 . Broadcast 1 | . . . . 1 . . . . Restock 1 | . . . . . . . 1 . Decoy 1 | . . . . 1 . . . . Data Cores Recovered . | . . . . . . . . . Used . | . . . . . . . . . Hacking Detections 13 | . 2 . . 8 1 . 1 1 Full Trace Events 11 | . 1 . . 7 1 . 1 1 Feedback Events 2 | . . . . 2 . . . . Corruption 2 | . . . . 2 . . . . Feedback Blocked . | . . . . . . . . . Robot Schematics Acquired . | . . . . . . . . . Robots Built . | . . . . . . . . . Authchips . | . . . . . . . . . Time . | . . . . . . . . . Total Robot Build Rating . | . . . . . . . . . Part Schematics Acquired 1 | . . . . 1 . . . . Parts Built . | . . . . . . . . . Authchips . | . . . . . . . . . Time . | . . . . . . . . . Total Part Build Rating . | . . . . . . . . . Part Studies Acquired 1 | . . . . 1 . . . . Parts Repaired . | . . . . . . . . . Time . | . . . . . . . . . Parts Recycled . | . . . . . . . . . Recycled Matter . | . . . . . . . . . Retrieved Matter . | . . . . . . . . . Retrieved Components . | . . . . . . . . . Parts Scanalyzed 1 | . . . . 1 . . . . Part Schematics Acquired 1 | . . . . 1 . . . . Parts Damaged . | . . . . . . . . . Bothacking | -11 -10 -10 -10 -8 -7 -7 -6 -6 ------------ Run | Yrd Mat Min Sub Mat Fac DSF Fac Gar Used RIF Installer . | . . . . . . . . . Robots Hacked . | . . . . . . . . . Non-combat . | . . . . . . . . . Combat . | . . . . . . . . . Robot Hacks Applied . | . . . . . . . . . Relay Couplers Released . | . . . . . . . . . Fabnet Peak Effective % . | . . . . . . . . . Robots Rewired . | . . . . . . . . . Allies Hacked . | . . . . . . . . . Hacks Repelled . | . . . . . . . . . Allies | -11 -10 -10 -10 -8 -7 -7 -6 -6 -------- Run | Yrd Mat Min Sub Mat Fac DSF Fac Gar Total Allies 1 | . . 1 . . . . . . Largest Group 1 | . . 1 1 . . . . . Highest-Rated Group 31 | . . 31 31 . . . . . Highest-Rated Ally 31 | . . 31 31 . . . . . Total Orders . | . . . . . . . . . Ally Attacks 7 | . . . 7 . . . . . Total Damage 83 | . . . 83 . . . . . Kills 1 | . . . 1 . . . . . Allies Corrupted . | . . . . . . . . . Allies Melted . | . . . . . . . . . Intel | -11 -10 -10 -10 -8 -7 -7 -6 -6 ------- Run | Yrd Mat Min Sub Mat Fac DSF Fac Gar Active Infowar (turns) . | . . . . . . . . . Robot Analysis Total 2 | . 1 . . 1 . . . . Derelict Logs Recovered . | . . . . . . . . . Drone Launches . | . . . . . . . . . Drone Recoveries . | . . . . . . . . . Exploration | -11 -10 -10 -10 -8 -7 -7 -6 -6 ------------- Run | Yrd Mat Min Sub Mat Fac DSF Fac Gar Turns Passed 2599 | 10 46 56 1627 582 8 61 79 130 Spaces Moved 4006 | 20 119 61 2648 641 23 173 154 167 Core 355 | 17 . . 49 . . 25 154 110 Treads . | . . . . . . . . . Legs . | . . . . . . . . . Wheels 57 | . . . . . . . . 57 Hover . | . . . . . . . . . Flight 3594 | 3 119 61 2599 641 23 148 . . Fastest Speed 32 | 37 37 37 37 32 32 32 50 50 Average Speed 51 | 48 37 37 50 59 32 34 50 67 Slowest Speed 180 | 50 37 37 150 180 32 50 50 100 Overloaded Moves 458 | . . . . 287 23 148 . . Propulsion Burnouts . | . . . . . . . . . Robots Hopped 15 | . 1 . 1 13 . . . . Potential Cave-ins . | . . . . . . . . . Cave-ins Triggered . | . . . . . . . . . Exploration Rate (%) 33 | 3 26 18 87 47 1 89 5 28 Regions Visited 8 Branch Regions 2 Pre-discovered Areas 1 | . . . 1 . . . . . Known Exits Taken 7 | 1 1 1 1 1 1 . 1 . Unknown Exits Taken . | . . . . . . . . . Scrap Searched . | . . . . . . . . . Spaces Dug . | . . . . . . . . . Terrain Destroyed 47 | . . . . 47 . . . . Melee . | . . . . . . . . . Projectile 8 | . . . . 8 . . . . AOE 39 | . . . . 39 . . . . Terrain Rammed 1 | . . . . . . . . 1 Walls Destroyed . | . . . . . . . . . Machines Disabled . | . . . . . . . . . Actions | -11 -10 -10 -10 -8 -7 -7 -6 -6 --------- Run | Yrd Mat Min Sub Mat Fac DSF Fac Gar Total 4408 | 19 118 93 2890 752 23 173 155 185 Wait 286 | . . 33 188 65 . . . . Move 3973 | 19 116 60 2645 618 23 172 154 166 Hop 11 | . 1 . 1 9 . . . . Pick Up . | . . . . . . . . . Fast Attach 4 | . . . 4 . . . . . Attach 4 | . . . 1 2 . 1 . . Detach 5 | . . . 5 . . . . . Swap 2 | . . . 1 1 . . . . Drop 2 | . . . 1 . . . . 1 Fire 94 | . 1 . 43 50 . . . . Melee . | . . . . . . . . . Ram 26 | . . . . 7 . . 1 18 Kick . | . . . . . . . . . Crush . | . . . . . . . . . Escape Stasis . | . . . . . . . . . Rewire . | . . . . . . . . . Trap . | . . . . . . . . . Miscellaneous 1 | . . . 1 . . . . . Route ------- -11/Scrapyard -10/Materials -10/Mines -10/Subcaves (discovered 2 exits: *Mat x2) -8/Materials (discovered 3 exits: *Fac x3) -7/Factory -7/DSF -6/Factory -6/Garrison (discovered 3 exits: *Fac x3) History --------- Turn | Location | Event 4 | -11/Scrapyard | Identified exit to Materials 4 | -11/Scrapyard | Discovered exit to Materials (range 13) 11 | -11/Scrapyard | Entered Materials 11 | -10/Materials | Evolved 1 slot: Utility x1 53 | -10/Materials | Identified exit to Mines 53 | -10/Materials | Discovered exit to Mines (range 6) 57 | -10/Materials | Entered Mines 64 | -10/Mines | Received a Mining Laser from a helpful Derelict 110 | -10/Mines | Identified exit to Subcaves 110 | -10/Mines | Discovered exit to Subcaves (range 4) 113 | -10/Mines | Entered Subcaves 113 | -10/Subcaves | Accompanied by 1 ally 113 | -10/Subcaves | Identified exit to Materials 113 | -10/Subcaves | Discovered exit to Materials (range 12) 167 | -10/Subcaves | Released subatomizers from SUBCON Basin 230 | -10/Subcaves | Shifting Twisted Machinery released Mak. Light Armor Plating 233 | -10/Subcaves | Shifting Twisted Machinery released Sub. Optics 260 | -10/Subcaves | A swath of the cavern ceiling suddenly collapsed 310 | -10/Subcaves | Build established: Hacker-Mutant 898 | -10/Subcaves | Shifting Twisted Machinery released Battle Cannon 908 | -10/Subcaves | Core integrity fell below 50% 948 | -10/Subcaves | Visited Clippyterm 950 | -10/Subcaves | Learned location of Deep Caves (-7) 950 | -10/Subcaves | Learned Research machine intel 1205 | -10/Subcaves | Visited 4L-MR0's lab 1379 | -10/Subcaves | Shifting Twisted Machinery released Battle Cannon 1388 | -10/Subcaves | Shifting Twisted Machinery released Mak. Thermal Plating 1416 | -10/Subcaves | Discovered exit to Materials (range 7) 1740 | -10/Subcaves | Entered Materials 1740 | -8/Materials | Evolved 4 slots: Power x1, Propulsion x2, Utility x1 1800 | -8/Materials | Identified exit to Factory 2065 | -8/Materials | Garrison activated, responded to threat 2260 | -8/Materials | Lost 5 parts (1n3u1w) 2322 | -8/Materials | Entered Factory 2322 | -7/Factory | Evolved 2 slots: Weapon x2 2330 | -7/Factory | Identified exit to DSF 2330 | -7/Factory | Entered DSF 2361 | -7/DSF | Additional patrols routed to DSF 2383 | -7/DSF | Identified exit to Factory 2383 | -7/DSF | Discovered exit to Factory (range 15) 2391 | -7/DSF | Entered Factory 2391 | -6/Factory | Evolved 2 slots: Propulsion x1, Utility x1 2410 | -6/Factory | Lost 3 parts (1p1n1u) 2470 | -6/Factory | Identified exit to Garrison 2470 | -6/Factory | Entered Garrison 2485 | -6/Garrison | Identified exit to Factory 2485 | -6/Garrison | Discovered exit to Factory (range 44) 2485 | -6/Garrison | Discovered exit to Factory (range 83) 2485 | -6/Garrison | Discovered exit to Factory (range 107) 2515 | -6/Garrison | Spotted B-75 Beast 2520 | -6/Garrison | Triggered checkpoint 2550 | -6/Garrison | Attempted to access garrison exit controls, blocked by remote lockdown 2561 | -6/Garrison | Core integrity fell below 50% 2576 | -6/Garrison | Triggered checkpoint 2593 | -6/Garrison | Core integrity fell below 20% 2600 | -6/Garrison | Core destroyed Last Messages --------------- 02550_ Attempting to access garrison exit controls... 02550_ Remote lockdown engaged. 02557_ Com. Wheel blasted off. 02557_ Knocked back. 02558_ Acquired 5 matter. 02560_ Knocked back. 02561_ Acquired 4 matter. 02576_ Beams of light sweep through the air. An alarm sounds. 02578_ Dropped Broken Sub. Power Source. 02580_ Com. Wheel destroyed. 02586_ Slammed into G-50 Soldier. 02589_ Slammed into Y-54 Guardian. 02592_ Destabilizing: System corrupted (+1). 02593_ Slammed into Y-54 Guardian. 02593_ Critical hit (Burn: +37). 02594_ Slammed into Y-54 Guardian. 02597_ Destabilizing: Core damaged (-17). 02598_ Slammed into Y-54 Guardian. 02600_ Slammed into Wall. 02600_ Destabilizing: Core damaged (-25). Map ----- +----------------------------------------------------+ | ??????????????????????????????#### | | ??????????????????##########?????# | | ??????????????????# #?????# % | | ??????????????????# # #?????### ## ## | | ??????????????????########+######### ## ## | | ?????????????????????????# % | | ?????????????????????????# | | ?????????????????????????# ######## | | ?????????????????????????# #??????##+###""""##### | | ?????????????????????????# #???????# #?# #???? | | ?????????????????????????# #???????# #?######???? | | ????????????????########## ######### #??????????? | | ????????????????# + #??????????? | | ????????????????# = ###########??????????? | | ????????????????# < ##### ;##??????#######???????? | | ????????????????# #???# ;??????### ##""#???????? | | ????????????????#####???# ;?????## "#???????? | | ????????????????????????# ;?????# ### "#???????? | | ????????????????????????# ;###### #?# "#???????? | | ????????????????????????# + + #?# "#???????? | | ????????????????????????#gg### ## #?# "#???????? | | ????????????????????????# ;#?# ## ### "#???????? | | ????????????????????????# ;#?# ### "#???????? | | ????????????????????????# ;### #?### ##""#???????? | | ??????????????????####### ;;## #???#######???????? | | ??????????????????# +@+ #???#######???????? | | ??????????????????# ##### # "" #???#"""""#???????? | | ??????????????????# #???# #""""###### ##???????? | | ?????????????????## ##??#Y * #???????? | | ?????????????????# #??####### ########???????? | | ?????????????????# #????????# #?????????????## | | ?????????????????# #????????#####?????????????# | | ?????????????????## ##??????????????????????????# | | ?????????????????## ##??????????????????????????# | | ?????????????????# ^#??????????????????????????# | | ?????????????????#" "#??????????????????????????# | | ?????????????????#" "#??????????????????????????# | | ?????????????????#" "#??????????????????????????# | | ?????????????????#"""#??????????????????????????# | | ?????????????????#####??????????????????????????# | | ????????????????????????????????????????????????## | | ??????????????????????????????????????????????#### | | ??????????????????????????????????????????????#""" | | ??????????????????????????????????????????????#" | | ??????????????????????????????????????????????#""" | | ??????????????????????????????????????????????#""" | | ??????????????????????????????????????????????#" | | ??????????????????????????????????????????????#""" | | ??????????????????????????????????????????????#### | | ?????????????????????????????????????????????????? | +----------------------------------------------------+ Best States ------------- Heat Dissipation 37 Energy Generation 15 Energy Capacity 200 Matter Stores 220 Matter Capacity 300 Sight Range 16 Terrain Scan Density 10 Additional Mass Support 6 Armor Coverage 200 Resistance: KI 35 Resistance: TH 45 Resistance: EX 35 Resistance: EM 35 Resistance: I 35 Resistance: S 35 Resistance: P 35 Evasion (%) 63 Targeting Accuracy 5 Offensive Hacking 20 Item Schematics ----------------- Sub. Power Source | -8/Materials | Scanalyzed Robot Schematics ------------------ None Fabricated ------------ Nothing Repaired ---------- Nothing Studied --------- Lgt. Nuclear Core | -8/Materials | Hacked Alien Tech Used ----------------- None Achievements -------------- Cya! Challenges ------------ None Cogshop Purchases (11) ------------------------ Imp. Flight Unit (1049) Imp. Flight Unit (1049) Weight Redist. System (699) Weight Redist. System (699) Sub. Power Source (699) Shotgun (699) Cld. VTOL Module (1558) Lgt. Nuclear Core (967) Targeting Computer (596) Com. Wheel (716) Com. Wheel (716) Game ------ Seed FusionSuperdenseAirjet Manual? 0 Play Time 00:49:20 Cumulative 526.6 hours Start 2026.08.18 @ 16:11:46 End 2026.08.18 @ 17:00:05 Sessions 1 Manual Loads 0 Difficulty Explorer Special Mode AFD2019/Pay2Buy Game No. 33 Rogue 5 Adventurer 1 Explorer 27 Win Type - Total 5 Types 5/0/0/0/0/0/0/0/0/0 Lore% 52 Gallery% 54 Achievement% 50 Wizard Run 0 Options --------- Layout 0 ASCII 0 Keyboard 0 Movement Mouse Keybinds 0 Fullscreen 2 Font 18/X11 Map View 38x25 Zoom Use 92% Tactical HUD 1 Map Filters NONE Filters NONE Steam 1 RUN: 033b81ff-a8a6-44c8-8352-48bbedbee460